[Event "44th Chess Olympiad Open 2022"]
[Site "Chennai"]
[Date "2022.08.06"]
[Round "8.4"]
[White "Abasov, Nijat"]
[Black "Nogerbek, Kazybek"]
[Result "1-0"]
[WhiteElo "2633"]
[BlackElo "2437"]
[Annotator "TA"]
[PlyCount "91"]
[EventDate "2022.??.??"]
[TimeControl "60"]

{[%evp 16,91,15,22,10,16,30,13,17,17,8,-6,13,0,-4,-16,-21,-27,0,6,17,22,20,21,
23,8,38,37,43,18,33,33,35,32,35,21,20,22,29,29,29,29,29,36,45,25,26,26,34,31,
41,25,20,15,15,15,16,15,15,16,19,8,45,8,8,8,8,8,24,8,8,8,8,8,12,8,4959,3837]} 
1. d4 {[%emt 0:01:03]} Nf6 {[%emt 0:00:14]} 2. c4 {[%emt 0:00:18]} e6 {[%emt 0:
00:00]} 3. Nf3 {[%emt 0:00:05]} d5 {[%emt 0:00:12]} 4. Nc3 {[%emt 0:00:15]} Be7
{[%emt 0:00:09]} 5. Bf4 {[%emt 0:01:28]} O-O {[%emt 0:00:20]} 6. e3 {[%emt 0:
00:00]} c5 {[%emt 0:00:20]} 7. dxc5 {[%emt 0:01:08]} Bxc5 {[%emt 0:00:34]} 8.
a3 {[%emt 0:00:52]} Nc6 {[%emt 0:13:00]} 9. Rc1 {[%emt 0:10:35]} dxc4 {[%emt 0:
00:00] D37: Queen's Gambit Declined: 5 Bf4.} 10. Bxc4 {[%emt 0:01:59]} Qxd1+ {
[%emt 0:00:38]} 11. Kxd1 {[%emt 0:00:19]} Rd8+ {[%emt 0:01:51] The position is
equal.} 12. Ke2 {[%emt 0:00:48]} Bd7 {[%emt 0:10:19] [#]} 13. Nb5 $146 {
[%emt 0:13:33]} ({Predecessor:} 13. Rhd1 Ne7 14. Nb5 Ned5 15. Bxd5 Bxb5+ 16.
Bc4 Rxd1 17. Kxd1 Bxc4 18. Rxc4 Bb6 19. Ke2 Nd5 20. Be5 f6 21. Bd4 Bd8 22. b3 {
½-½ (22) Gelfand,B (2691)-Kramnik,V (2751) Monte Carlo 1999}) 13... Be7 {
[%emt 0:14:18]} 14. Nbd4 {[%emt 0:03:06]} Rac8 {[%emt 0:05:00]} 15. h3 {
[%emt 0:10:18]} Nxd4+ {[%emt 0:00:00]} 16. Nxd4 {[%emt 0:00:16]} Bc5 {[%emt 0:
00:00]} 17. Be5 {[%emt 0:04:10]} Bxd4 {[%emt 0:00:00]} 18. Bxd4 {[%emt 0:00:07]
} Rxc4 {[%emt 0:00:00]} 19. Rxc4 {[%emt 0:00:13] Bxf6 is the strong threat.}
Bb5 {[%emt 0:00:00]} 20. b3 {[%emt 0:00:09]} Ne4 {[%emt 0:08:59]} 21. Rhc1 {
[%emt 0:04:16][%cal Ya3a4]} Nd6 {[%emt 0:00:00] [#] Pin} 22. a4 $1 {[%emt 0:00:
57]} Ba6 {[%emt 0:00:00] [#] Pin} (22... Bxc4+ 23. bxc4) 23. Bxa7 $1 {[%emt 0:
00:20][%cal Yc1d1]} Ra8 {[%emt 0:00:00] [#]} (23... Rc8 24. Kd3) 24. Bd4 {
[%emt 0:01:25]} f6 {[%emt 0:00:00] [#]} 25. f4 $1 {[%emt 0:00:00]} Kf7 {
[%emt 0:00:00] [#]} 26. Kd3 $1 {[%emt 0:01:41][%cal Yd4c5]} Rc8 {[%emt 0:10:07]
Pin} (26... Bxc4+ 27. bxc4) 27. R1c2 {[%emt 0:02:19]} h5 {[%emt 0:01:59] [#]}
28. e4 $1 {[%emt 0:00:44]} Nxc4 {[%emt 0:04:55]} (28... Kg6 29. Rc1) 29. bxc4
$11 {[%emt 0:00:13] Endgame KRB-KRB} Kg6 {[%emt 0:09:20]} 30. a5 {[%emt 0:08:
59]} Kf7 {[%emt 0:00:00]} 31. Rc3 {[%emt 0:00:00]} Kg6 {[%emt 0:00:00]} 32. Rc1
{[%emt 0:00:10]} Kf7 {[%emt 0:00:00]} 33. e5 {[%emt 0:07:27]} Kg6 {[%emt 0:00:
00]} 34. exf6 {[%emt 0:03:52]} gxf6 {[%emt 0:00:00]} 35. g4 {[%emt 0:00:04]}
hxg4 {[%emt 0:00:00]} 36. hxg4 {[%emt 0:00:05]} e5 {[%emt 0:00:00]} 37. fxe5 {
[%emt 0:05:48]} fxe5 {[%emt 0:00:00]} 38. Be3 {[%emt 0:04:02]} Rc6 {[%emt 0:00:
00]} 39. Rh1 {[%emt 0:01:37] And now Rh6+ would win.} Kg7 {[%emt 0:00:00]
Prevents Rh6.} 40. Ke4 {[%emt 0:00:09] Hoping for c5.} Rxc4+ {[%emt 0:00:00]}
41. Kf5 {[%emt 0:30:06]} Bb5 {[%emt 0:00:00]} 42. Rb1 {[%emt 0:03:16]} Bd7+ {
[%emt 0:03:23]} 43. Kxe5 {[%emt 0:00:16]} Bc6 {[%emt 0:00:24]} 44. Bd4 {
[%emt 0:03:23]} Ra4 {[%emt 0:00:43]} 45. Bc3 {[%emt 0:00:11]} Rxg4 $2 {[%emt 0:
00:20]} (45... Rc4 $11 46. Bd4 Kh6) 46. Kf5+ {[%emt 0:00:04] Weighted Error
Value: White=0.07 (flawless) /Black=0.05 (flawless)} 1-0

[Event "44th Chess Olympiad Open 2022"]
[Site "Chennai"]
[Date "2022.08.06"]
[Round "8.4"]
[White "Jumabayev, Rinat"]
[Black "Mamedov, Rauf"]
[Result "1/2-1/2"]
[WhiteElo "2617"]
[BlackElo "2656"]
[Annotator "TA"]
[PlyCount "85"]
[EventDate "2022.??.??"]
[TimeControl "60"]

{[%evp 13,85,29,25,12,4,0,25,27,39,39,40,40,63,71,62,40,59,52,112,101,195,66,
97,94,100,62,79,21,35,0,0,0,0,0,0,-37,0,-14,23,23,19,5,8,-14,-6,-4,-11,-145,
-19,-35,-38,-175,-124,-144,-54,-156,-116,-138,-129,-129,-129,-122,-131,-122,
-137,-134,-138,-127,-70,-70,-15,-18,-8,-8]} 1. d4 {[%emt 0:00:01]} d5 {[%emt 0:
00:00]} 2. c4 {[%emt 0:00:05]} c6 {[%emt 0:00:11]} 3. Nf3 {[%emt 0:00:05]} Nf6
{[%emt 0:00:08]} 4. e3 {[%emt 0:00:24]} Bf5 {[%emt 0:00:10]} 5. Nc3 {[%emt 0:
00:00]} e6 {[%emt 0:00:04]} 6. Nh4 {[%emt 0:00:06]} Bg6 {[%emt 0:00:02]} 7.
Nxg6 {[%emt 0:00:09]} hxg6 {[%emt 0:00:39]} 8. Qd3 {[%emt 0:06:25] D12: Slav
Defence: 3 Nf3 Nf6 4 e3 Bf5.} Nbd7 {[%emt 0:04:24]} 9. g3 {[%emt 0:03:48]} Be7
{[%emt 0:03:43]} 10. Bg2 {[%emt 0:01:02] White has an edge.} Rc8 {[%emt 0:00:
00]} 11. O-O {[%emt 0:12:06] [#]} Qa5 $146 {[%emt 0:11:03]} ({Predecessor:} 
11... dxc4 12. Qxc4 b5 13. Qe2 b4 14. Na4 Qa5 15. b3 c5 16. dxc5 Nxc5 17. Nxc5
Bxc5 {½-½ (44) Predke,A (2595)-Goryachkina,A (2493) Moscow 2018}) 12. c5 {
[%emt 0:00:00]} e5 {[%emt 0:02:43]} 13. b4 {[%emt 0:12:33]} Qc7 {[%emt 0:07:35]
} 14. e4 {[%emt 0:05:32]} dxe4 {[%emt 0:09:18]} 15. Nxe4 {[%emt 0:09:09]} Nd5 {
[%emt 0:14:58]} (15... Nxe4 $14 16. Qxe4 (16. Bxe4 Rd8 $14) 16... O-O) 16. dxe5
$16 {[%emt 0:06:29]} Qxe5 {[%emt 0:11:55] [#]} (16... Nxe5 $16 {was worth a
try.} 17. Qd4 Rd8) 17. Rb1 {[%emt 0:06:25]} ({White has to play} 17. Bg5 $1 $18
{[%cal Rg5e7]}) 17... Qh5 {[%emt 0:03:16][%csl Gh8][%cal Rh5h2]} 18. h4 {
[%emt 0:03:04] Active counter play!} O-O {[%emt 0:04:25]} 19. Ng5 {[%emt 0:00:
00]} Ne5 {[%emt 0:11:14]} 20. Qe4 {[%emt 0:04:49]} (20. Qb3 $1 $16) 20... Bxg5
{[%emt 0:00:00]} 21. Bxg5 f6 $36 {[%emt 0:05:18] White is under pressure.} 22.
Bd2 {[%emt 0:01:37] Against Nc3} Rce8 {[%emt 0:00:00]} 23. Rb3 {[%emt 0:00:00]}
g5 {[%emt 0:04:03]} 24. Qd4 {[%emt 0:05:14]} Rd8 {[%emt 0:00:00][%cal Yd5f4]
Strongly threatening ...Nf4!} 25. Bxg5 {[%emt 0:02:13]} Qe2 {[%emt 0:03:29]}
26. Bc1 {[%emt 0:01:42]} Qxa2 {[%emt 0:00:00]} 27. Ra3 {[%emt 0:00:38]} Qc2 {
[%emt 0:00:00]} 28. h5 (28. Rxa7 $2 Nc3 29. Be4 (29. Qe3 $2 Rd3 $19) 29... Nxe4
$19) 28... a6 {[%emt 0:07:53]} 29. h6 {[%emt 0:08:09]} g6 {[%emt 0:02:28]} 30.
Qh4 {[%emt 0:06:01]} (30. Re1 $11) 30... Kh8 {[%emt 0:00:00]} ({Black should
try} 30... Nc3 $1 $17 {[%cal Rc3e2] ...Ne2+ is the strong threat.} 31. Bf4 Ne2+
32. Kh1 g5 33. Bxg5 fxg5 34. Qxg5+ Qg6 35. Qxg6+ Nxg6) 31. Be4 {[%emt 0:03:55]}
Qe2 {[%emt 0:00:00]} 32. Qh1 {[%emt 0:00:00]} ({White should play} 32. Bb1 $1
$15) 32... Nxb4 $19 {White must now prevent ... Nbd3. Pair of Knights!} 33. Re3
{[%emt 0:01:42]} Qg4 {[%emt 0:00:00]} (33... Qc4 $17 {And now ...Nd5 would win.
} 34. Bb2 Nbd3 35. Bxd3 Nxd3) 34. Bb2 {[%emt 0:00:00]} (34. Qh4 $1 $15) 34...
Nd5 {[%emt 0:00:00]} 35. Rb3 {[%emt 0:00:00]} Rf7 {[%emt 0:01:08]} 36. Qg2 {
[%emt 0:00:00]} Nc4 {[%emt 0:00:00]} 37. Bc1 {[%emt 0:00:00] Against Nd2} Re7
38. f3 {[%emt 0:00:48][%cal Yf2f3,Yf3f4]} Qe6 {[%emt 0:00:48]} 39. Qc2 {
[%emt 0:00:00] [#]} (39. Bxg6 Nce3 40. Re1 (40. Bxe3 $2 Nxe3 41. Rxe3 Qxe3+ 42.
Qf2 Qg5 $19) 40... Qg8 $17) 39... Ne5 {[%emt 0:00:00]} 40. Bb2 {[%emt 0:00:00]
[#]} Qh3 {[%emt 0:14:40]} ({Stronger than} 40... Kh7 41. f4 Ng4 42. Bxg6+ Kxh6
43. f5 $11) (40... a5 $1 $17 {Hoping for ...Nb4.} 41. Bxd5 cxd5) 41. Bxe5 $15 {
[%emt 0:01:31]} Rxe5 {[%emt 0:00:00]} (41... fxe5 $15 42. f4 (42. Qh2 Qxh2+ 43.
Kxh2 Kh7 $17) 42... Nf6) 42. f4 $1 $11 {[%emt 0:10:56]} Re7 {[%emt 0:07:58]}
43. Bxd5 {[%emt 0:09:20] Weighted Error Value: White=0.26 (precise) /Black=0.
22 (precise)} 1/2-1/2

[Event "44th Chess Olympiad Open 2022"]
[Site "Chennai"]
[Date "2022.08.06"]
[Round "8.4"]
[White "Urazayev, Arystanbek"]
[Black "Durarbayli, Vasif"]
[Result "0-1"]
[WhiteElo "2430"]
[BlackElo "2638"]
[Annotator "TA"]
[PlyCount "66"]
[EventDate "2022.??.??"]
[TimeControl "60"]

{[%evp 19,66,18,8,20,8,10,19,15,22,-8,-7,-13,-13,-9,0,0,0,0,0,0,0,0,0,-38,0,
-17,-16,-32,-18,-16,-22,-13,-25,-74,-75,-79,-73,-46,-66,-439,-444,-444,-420,
-408,-415,-639,-632,-637,-604]} 1. e4 {[%emt 0:01:08]} e5 {[%emt 0:00:26]} 2.
Nf3 {[%emt 0:01:28]} Nc6 {[%emt 0:00:19]} 3. Bb5 {[%emt 0:00:52]} a6 {[%emt 0:
00:00]} 4. Ba4 {[%emt 0:00:06]} Nf6 {[%emt 0:00:15]} 5. O-O {[%emt 0:01:09]}
Be7 {[%emt 0:01:12]} 6. Re1 {[%emt 0:01:01]} b5 {[%emt 0:00:00]} 7. Bb3 {
[%emt 0:00:05]} O-O {[%emt 0:00:00]} 8. a4 {[%emt 0:02:44]} b4 {[%emt 0:01:12]}
9. d4 {[%emt 0:01:09] is cutting edge theory.} d6 {[%emt 0:00:10]} 10. dxe5 {
[%emt 0:00:04]} Nxe5 {[%emt 0:00:05]} 11. Nxe5 {[%emt 0:00:04] C88: Closed Ruy
Lopez: Anti-Marshall Systems.} dxe5 {[%emt 0:00:06]} 12. Qe2 {[%emt 0:00:59]}
Bc5 {[%emt 0:02:59]} 13. Be3 {[%emt 0:08:24] The position is equal.} Bd4 {
[%emt 0:00:27]} (13... Nxe4 $2 14. Qc4 Bxe3 15. Qxe4 Bxf2+ 16. Kxf2 $18) 14. c3
{[%emt 0:10:37]} (14. Qd3 $5 {[%cal Re3d4]}) 14... bxc3 {[%emt 0:15:52]} 15.
bxc3 {[%emt 0:08:01]} Bxe3 {[%emt 0:12:08]} 16. Qxe3 {[%emt 0:00:00]} Rb8 {
[%emt 0:00:08][%cal Ya8b8,Yb8b6,Yb6h6]} 17. Nd2 {[%emt 0:00:00]} Rb6 {[%emt 0:
28:40] [#]} 18. a5 $146 {[%emt 0:09:27]} ({Predecessor:} 18. f3 Nh5 19. g3 Qe7
20. Bc4 Rd8 21. Nb3 Rg6 22. Rad1 Rf8 23. Kf2 Be6 24. Bd5 {0-1 (54) Kanarek,M 
(2508)-Salem,A (2642) Warsaw 2018}) 18... Ng4 {[%emt 0:00:00]} 19. Qe2 {
[%emt 0:10:46]} Rh6 {[%emt 0:00:00]} 20. h3 {[%emt 0:04:08]} Nf6 {[%emt 0:00:
00][%cal Yg4f6,Yf6h5,Yh5f4,Yf4d3,Yd3f2] White must now prevent ... Nh5.} 21.
Nc4 {[%emt 0:01:34]} Be6 {[%emt 0:01:07]} 22. Rab1 {[%emt 0:06:55]} Nh5 {
[%emt 0:04:21] aiming for ...Qg5.} 23. Nxe5 {[%emt 0:07:16] Strongly
threatening Bxe6.} Nf4 {[%emt 0:05:32]} 24. Qf3 {[%emt 0:01:52]} Qg5 {[%emt 0:
00:00][%csl Ye5,Yh3] Black has compensation.} 25. Ng4 {[%emt 0:00:00]} Rg6 {
[%emt 0:16:46]} 26. Kh1 {[%emt 0:04:19]} (26. Bc2 $1 $11 {feels stronger.})
26... h5 $36 {[%emt 0:00:12] Black is really pushing.} 27. Ne3 {[%emt 0:01:38]
[#]} Qh4 $1 {[%emt 0:01:44][%cal Rf4h3] Hoping for ... Nxh3! Black is more
active.} 28. Rg1 {[%emt 0:02:34]} Nd3 $1 {[%emt 0:00:27]} 29. Nf5 $2 {[%emt 0:
00:55] Now White is beyond hope.} (29. Nd1 $1 $15 Ne5 30. Qe3) 29... Nxf2+ $19
{[%emt 0:00:00]} 30. Kh2 {[%emt 0:14:34]} Bxf5 {[%emt 0:00:28]} 31. exf5 {
[%emt 0:02:21] [#]} Rg3 {[%emt 0:00:00]} 32. Bxf7+ {[%emt 0:01:35]} (32. Qxg3
$142 Ng4+ 33. Qxg4 hxg4 34. Rgd1) 32... Rxf7 {[%emt 0:00:00]} ({Don't play} 
32... Kxf7 33. Qd5+ Kf6 34. Qe6+ Kg5 35. Qg6+ Kf4 36. Rb4+ Ne4 37. Qe6 Rxg2+
38. Rxg2 $18) 33. Rb8+ {[%emt 0:00:00]} Kh7 {[%emt 0:00:00] Weighted Error
Value: White=0.56/Black=0.03 (flawless)} 0-1

[Event "44th Chess Olympiad Open 2022"]
[Site "Chennai"]
[Date "2022.08.06"]
[Round "8.5"]
[White "Giri, Anish"]
[Black "Erdos, Viktor"]
[Result "1-0"]
[WhiteElo "2760"]
[BlackElo "2586"]
[Annotator "TA"]
[PlyCount "85"]
[EventDate "2022.??.??"]
[TimeControl "60"]

{[%evp 13,85,23,16,0,0,0,0,-24,-18,-34,-37,-39,-35,-32,-18,-37,-19,-30,-21,-28,
-33,-54,-24,-45,0,0,0,-15,-18,-18,-18,-22,-22,-23,0,-11,-9,-9,-10,-34,-5,-4,36,
0,0,0,0,0,0,0,56,54,44,43,157,147,279,269,354,337,441,435,683,674,612,612,578,
553,718,718,29982,29983,29978,29961]} 1. Nf3 {[%emt 0:00:04] Huzman,A} d5 {
[%emt 0:00:07]} 2. d4 {[%emt 0:00:28]} Nf6 {[%emt 0:00:05]} 3. c4 {[%emt 0:00:
00]} dxc4 {[%emt 0:00:07]} 4. e3 {[%emt 0:00:13]} e6 {[%emt 0:00:05]} 5. Bxc4 {
[%emt 0:00:05]} c5 {[%emt 0:00:04]} 6. O-O {[%emt 0:00:08]} a6 {[%emt 0:00:04]}
7. Bd3 {[%emt 0:03:34]} Nbd7 {[%emt 0:09:29]} 8. e4 {[%emt 0:11:59] D27:
Queen's Gambit Accepted: Classical main line: 7 e4!? and 7 a4.} cxd4 {[%emt 0:
00:00]} 9. e5 {[%emt 0:00:12]} Nd5 {[%emt 0:00:22][%cal Yf6d5,Yd5b4,Yb4c6]} 10.
Bc4 {[%emt 0:10:48] The position is equal.} Nb4 {[%emt 0:11:47]} 11. a3 {
[%emt 0:00:50]} Nc6 {[%emt 0:00:07]} 12. Re1 {[%emt 0:00:34]} b5 {[%emt 0:01:
08]} 13. Bf1 {[%emt 0:04:45]} Bb7 {[%emt 0:00:06]} 14. Nbd2 {[%emt 0:02:51] [#]
} Be7 $146 {[%emt 0:08:57]} ({Predecessor:} 14... h6 15. Nb3 Rc8 16. Bf4 Qb6
17. Rc1 Be7 18. Nfxd4 Nxd4 19. Rxc8+ Bxc8 20. Qxd4 Qxd4 21. Nxd4 Bg5 22. Rc1
O-O 23. Bxg5 hxg5 24. Nc6 Re8 25. Na7 {1-0 (25) Lautier,J (2645)-Hansen,C 
(2595) Malmo 1998 CBM 066 [Huzman,A]}) 15. Nb3 {[%emt 0:00:17]} O-O {[%emt 0:
00:31]} 16. Bf4 {[%emt 0:00:34]} Rc8 {[%emt 0:05:06]} 17. Bd3 {[%emt 0:02:27]}
Re8 {[%emt 0:03:09]} 18. Qe2 {[%emt 0:02:11]} f5 {[%emt 0:00:00]} 19. exf6 $1 {
[%emt 0:02:09]} Bxf6 {[%emt 0:02:43]} 20. Be4 {[%emt 0:07:45]} (20. Qe4 g6 21.
Qe2 e5 $17) 20... Na5 {[%emt 0:09:39]} 21. Nxa5 {[%emt 0:00:00]} (21. Nbxd4 $2
Bxe4 22. Qxe4 Nc5 $17) 21... Bxe4 {[%emt 0:00:09]} 22. Qxe4 {[%emt 0:00:05]}
Qxa5 {[%emt 0:00:34]} 23. Rac1 {[%emt 0:07:36]} (23. Nxd4 Nc5 24. Qe3 Bxd4 25.
Qxd4 Nb3 $17) 23... Qb6 {[%emt 0:04:41]} 24. Rxc8 {[%emt 0:00:00]} Rxc8 {
[%emt 0:00:05]} 25. b4 {[%emt 0:01:25]} Rc3 {[%emt 0:15:55]} 26. g4 {[%emt 0:
00:00]} h6 {[%emt 0:03:54]} (26... Rxa3 $2 {[#]} 27. Bc7 $1 Ra1 28. Bxb6 $18)
27. h4 $1 {[%emt 0:00:00]} Rc4 {[%emt 0:02:56][%cal Yd4d3]} (27... Rxa3 28. g5
hxg5 29. hxg5 $18) 28. g5 {[%emt 0:01:25]} (28. Nd2 $5 {[%cal Rd2c4]} Rc6 29.
g5 hxg5 30. hxg5 $11) 28... hxg5 {[%emt 0:00:06]} 29. hxg5 {[%emt 0:00:03]} d3
$1 {[%emt 0:00:21]} 30. Qxd3 {[%emt 0:00:19]} Qc6 {[%emt 0:01:45]} 31. Qd6 $36
{[%emt 0:06:50] White fights for an advantage.} Bb2 {[%emt 0:00:33] [#]} (31...
Qxf3 $2 32. Qxe6+ Kh7 33. Qf5+ g6 34. Qxd7+ Bg7 35. Re7 $18) (31... Qxd6 $11
32. Bxd6 Rc6) 32. Rxe6 $1 $14 {[%emt 0:00:57] White threatens Re8+ and mate.}
Qxd6 {[%emt 0:00:33]} (32... Qxf3 $2 {is a self mate.} 33. Re8+) 33. Bxd6 {
[%emt 0:00:02]} Rc8 {[%emt 0:00:00]} (33... Rc6 $14) 34. Kg2 {[%emt 0:01:59]}
Nb6 {[%emt 0:00:19]} (34... Rc6 $16 {keeps fighting.}) 35. Bc5 $18 {[%emt 0:08:
56]} Nc4 {[%emt 0:00:27]} 36. Rxa6 {[%emt 0:00:10]} Nxa3 {[%emt 0:00:28]} 37.
g6 {[%emt 0:01:19]} Nc4 {[%emt 0:00:26]} (37... Re8 $142 38. Ra7 Nc4) 38. Nd4 {
[%emt 0:00:38]} Ne5 {[%emt 0:00:42]} 39. Nxb5 {[%emt 0:00:30]} Nd3 {[%emt 0:00:
29]} 40. Bd6 {[%emt 0:04:02] Strongly threatening Na7.} Bc1 {[%emt 0:00:34]}
41. Nd4 {[%emt 0:32:41] aiming for b5.} Nf4+ {[%emt 0:12:06]} 42. Bxf4 {
[%emt 0:00:00]} Bxf4 {[%emt 0:00:08]} 43. b5 {[%emt 0:00:00] Weighted Error
Value: White=0.05 (flawless) /Black=0.44} 1-0

[Event "44th Chess Olympiad Open 2022"]
[Site "Chennai"]
[Date "2022.08.06"]
[Round "8.5"]
[White "Berkes, Ferenc"]
[Black "Van Foreest, Jorden"]
[Result "1/2-1/2"]
[WhiteElo "2649"]
[BlackElo "2678"]
[Annotator "TA"]
[PlyCount "83"]
[EventDate "2022.??.??"]
[TimeControl "60"]

{[%evp 11,83,0,20,26,11,26,12,13,35,11,25,26,38,38,37,48,49,31,33,32,28,28,79,
43,38,34,50,20,27,23,23,18,40,22,17,13,25,25,21,17,32,16,18,24,20,21,20,13,25,
25,25,18,18,18,20,21,20,20,18,20,22,22,26,12,26,22,26,25,25,25,26,20,27,6]} 1.
Nf3 {[%emt 0:00:05]} Nf6 {[%emt 0:00:29]} 2. g3 {[%emt 0:00:13]} g6 {[%emt 0:
00:00]} 3. Bg2 {[%emt 0:00:07]} Bg7 {[%emt 0:00:06]} 4. O-O {[%emt 0:00:51]}
O-O {[%emt 0:00:12]} 5. d4 {[%emt 0:00:09]} d5 {[%emt 0:00:07]} 6. c3 {[%emt 0:
00:00]} Bf5 {[%emt 0:00:44]} 7. Qb3 {[%emt 0:07:31] D02:1 d4 d5 2 Nf3
sidelines, including 2...Nf6 3 g3 and 2...Nf6 3 Bf4.} Qc8 {[%emt 0:00:39]} 8.
c4 {[%emt 0:02:30]} dxc4 {[%emt 0:02:25]} 9. Qxc4 {[%emt 0:00:06] [#] The
position is equal.} c5 $146 {[%emt 0:08:27]} ({Predecessor:} 9... Nbd7 10. Nc3
c5 11. d5 Bg4 12. e4 e6 13. e5 exd5 14. Qf4 Bxf3 15. exf6 Bxg2 16. fxg7 {
0-1 (37) Mamedyarov,S (2774)-Vachier Lagrave,M (2779) Stavanger 2019}) 10. Qxc5
{[%emt 0:10:39]} Qxc5 {[%emt 0:00:41]} 11. dxc5 {[%emt 0:02:35]} Na6 {[%emt 0:
00:00]} 12. c6 {[%emt 0:03:49]} bxc6 {[%emt 0:00:18]} 13. Nd4 {[%emt 0:00:41]}
Nb4 {[%emt 0:02:12]} 14. Nxf5 {[%emt 0:13:33]} gxf5 {[%emt 0:00:42]} 15. Na3 {
[%emt 0:07:14] Prevents Nc2.} Nfd5 {[%emt 0:08:32]} 16. Nc4 {[%emt 0:01:18]}
Rad8 {[%emt 0:09:33]} (16... e6 $11 {remains equal.}) 17. Bd2 {[%emt 0:11:28]}
c5 {[%emt 0:00:39]} 18. Rfc1 {[%emt 0:09:05]} Nb6 {[%emt 0:02:24]} 19. Bg5 {
[%emt 0:03:20] A strong pair of Bishops.} Rd7 {[%emt 0:00:47]} ({But not} 19...
Nxc4 20. Rxc4 Rd7 21. Rxc5 $16) 20. a3 {[%emt 0:00:27]} N4d5 {[%emt 0:02:52]} (
{Resist} 20... Nxc4 21. Rxc4 Na6 22. Bc6 $16) 21. Rab1 {[%emt 0:03:17]} (21.
Rc2 $5 {[%cal Rc4b6]}) 21... h6 {[%emt 0:01:01]} 22. Nxb6 {[%emt 0:03:03]} axb6
{[%emt 0:01:38]} 23. Bd2 {[%emt 0:00:06]} Rfd8 {[%emt 0:02:02]} 24. Be1 {
[%emt 0:00:09]} e6 {[%emt 0:02:43]} 25. e3 {[%emt 0:00:07]} Nf6 {[%emt 0:00:38]
} 26. b4 {[%emt 0:02:46]} Ra7 {[%emt 0:00:26]} 27. bxc5 {[%emt 0:05:46]} bxc5 {
[%emt 0:00:12]} 28. Rxc5 {[%emt 0:01:13]} Rxa3 {[%emt 0:00:19]} 29. Bf3 {
[%emt 0:00:14]} Nd7 {[%emt 0:01:09]} 30. Rc7 {[%emt 0:02:05] Bb4 is the strong
threat.} Be5 {[%emt 0:00:09]} 31. Rcc1 {[%emt 0:01:11]} Rb8 {[%emt 0:04:00]}
32. Rxb8+ {[%emt 0:00:07]} Nxb8 {[%emt 0:00:05]} 33. Kg2 {[%emt 0:00:34]} Nd7 {
[%emt 0:00:38]} 34. h3 {[%emt 0:04:17]} Kg7 {[%emt 0:00:12]} 35. Rc2 {[%emt 0:
00:00]} Rb3 {[%emt 0:01:57]} 36. Ba5 {[%emt 0:02:50]} Rb2 {[%emt 0:00:21]} 37.
Rc4 {[%emt 0:01:33]} Rb5 {[%emt 0:02:28]} 38. Bd2 {[%emt 0:00:08]} Rc5 {
[%emt 0:00:46]} 39. Be2 {[%emt 0:00:48]} Rxc4 {[%emt 0:00:06]} 40. Bxc4 {
[%emt 0:00:04]} Nf6 {[%emt 0:00:05]} 41. Kf1 {[%emt 0:31:34]} Ne4 {[%emt 0:00:
00]} 42. Ke2 {[%emt 0:00:24] Weighted Error Value: White=0.06 (flawless) /
Black=0.06 (flawless)} 1/2-1/2

[Event "44th Chess Olympiad Open 2022"]
[Site "Chennai"]
[Date "2022.08.06"]
[Round "8.5"]
[White "Kantor, Gergely"]
[Black "Warmerdam, Max"]
[Result "0-1"]
[WhiteElo "2582"]
[BlackElo "2610"]
[Annotator "TA"]
[PlyCount "56"]
[EventDate "2022.??.??"]
[TimeControl "60"]

{[%evp 11,56,30,39,17,22,26,29,0,6,-1,14,13,66,30,17,16,11,31,23,22,17,24,18,
-22,-16,-16,14,0,0,-230,-218,-245,-237,-633,-621,-1205,-1215,-1215,-1211,-1199,
-1168,-1140,-1068,-29994,-29995,-29995,-29996]} 1. d4 {[%emt 0:00:05]} d5 {
[%emt 0:00:08]} 2. c4 {[%emt 0:00:04]} e6 {[%emt 0:00:04]} 3. Nc3 {[%emt 0:00:
00]} Nf6 {[%emt 0:00:07]} 4. cxd5 {[%emt 0:01:17]} exd5 {[%emt 0:00:05]} 5. Bg5
{[%emt 0:00:49]} Bb4 {[%emt 0:00:08]} 6. e3 {[%emt 0:16:12]} h6 {[%emt 0:00:07]
} 7. Bxf6 {[%emt 0:00:08] D35: Queen's Gambit Declined: Exchange Variation.}
Qxf6 {[%emt 0:00:08]} 8. Qa4+ {[%emt 0:00:57]} Nc6 {[%emt 0:00:07][%cal Yb8c6,
Yc6e7,Ye7f5]} 9. Nge2 {[%emt 0:18:09][%cal Yg1e2,Ye2f4,Yf4d3,Yd3e5] White has
an edge.} O-O {[%emt 0:28:05]} 10. Nf4 {[%emt 0:00:00]} Rd8 {[%emt 0:03:36]
[%cal Yc6d4]} 11. Rc1 {[%emt 0:42:23] [#]} g5 $146 {[%emt 0:00:00]} ({Black
should try} 11... Bxc3+ $11 12. Rxc3 Qd6) ({Predecessor:} 11... Qd6 12. a3
Bxc3+ 13. Rxc3 Ne7 14. Bd3 c6 15. b4 b5 16. Qb3 a5 17. O-O axb4 18. axb4 {
1-0 (30) Veremechik,V-Okner,B USSR 1988}) 12. Nd3 {[%emt 0:00:00]} (12. Nh5 $5
{[%cal Rh5f6]} Qg6 13. Be2 $11) 12... Bf8 {[%emt 0:00:11]} 13. Be2 {[%emt 0:00:
00]} Ne7 {[%emt 0:00:26]} 14. O-O {[%emt 0:00:00]} c6 {[%emt 0:00:00]} 15. Ne5
{[%emt 0:05:25]} Nf5 {[%emt 0:02:12]} 16. Bh5 {[%emt 0:00:00]} Be6 {[%emt 0:02:
20]} 17. Nd3 {[%emt 0:00:00]} Bd6 {[%emt 0:02:23]} 18. Qd1 {[%emt 0:00:00]} Kh8
{[%emt 0:05:06]} 19. b4 {[%emt 0:06:06]} Rg8 {[%emt 0:00:00][%cal Yg5g4]
Strongly threatening ...g4!} 20. h3 {[%emt 0:00:00] [#]} (20. g3 $11 {and
White has nothing to worry.}) 20... g4 $1 $19 {[%emt 0:04:08]} 21. Bxg4 {
[%emt 0:00:00] [#]} h5 $1 {[%emt 0:03:06]} 22. Bxh5 {[%emt 0:09:14]} (22. e4
hxg4 23. exf5 Bxf5 24. Ne5) 22... Qh4 {[%emt 0:08:07] ( -> ...Qxh3)} 23. Qf3 {
[%emt 0:00:17] [#]} Nxd4 $1 {[%emt 0:00:41]} 24. exd4 {[%emt 0:00:00]} Bxh3 {
[%emt 0:00:04]} 25. Ne5 {[%emt 0:00:49]} Bxe5 {[%emt 0:01:08]} 26. dxe5 {
[%emt 0:00:10]} Rxg2+ {[%emt 0:00:15]} 27. Kh1 {[%emt 0:00:29] [#]} Rg1+ $3 {
[%emt 0:01:32] Decoy} 28. Kxg1 {[%emt 0:00:55]} Rg8+ {[%emt 0:00:00] Weighted
Error Value: White=0.83/Black=0.07 (flawless)} 0-1